Workbook

Sheet Sheet1
B1: Nutrients from effluent and sludge calculator | J1: (Version 3.1)
B2: Step | C2: Select type of material being spread | L2: Sludge: | M2: N (kg/ML) | N2: P (kg/ML) | O2: K (kg/ML) | P2: % solids | W2: OB step 3 TF | Y2: FALSE | Z2: FALSE | AA2: TRUE | AB2: FALSE
B3: 1 | D3: Your selection: | E3: =LOOKUP(Y10,AB18:AB20,AC18:AC20) -> Sludge | M3: 957 | N3: 239 | O3: 593 | P3: 8.3 | U3: Southwest Victoria | W3: OB step 3 | Y3: =IF(Y2=TRUE,1,IF(Z2=TRUE,2,IF(AA2=TRUE,3,IF(AB2=TRUE,4)))) -> 3 | Z3: =IF($Y$3=1,IF(Y10=1,D39/(E8*D38),D39/E8)) -> FALSE | AC3: 1 | AD3: nitrogen content
C4: =IF(Y10=1," Nutrient concentrations in sludge are very dependant on % solids.","") -> Nutrient concentrations in sludge are very dependant on % solids. | M4: 1893 | N4: 612 | O4: 934 | P4: na | U4: NSW - Central | Z4: =IF($Y$3=2,D40/G8) -> FALSE | AC4: 2 | AD4: potassium content
C5: =IF(Y10=1," Test your own sludge and be cautious with variation in % solids.","") -> Test your own sludge and be cautious with variation in % solids. | P5: =IF(Y10=1,IF(Y12=3,"<-- ENTER OWN DATA HERE",""),"") ->  | U5: OWN DATA | Z5: =IF($Y$3=3,IF(Y10=1,D39/(E8*D38),D39/E8)) -> 0.1567398119 | AB5: =IF(Y3=3,D40/G8) -> 0.1011804384 | AC5: 3 | AD5: =IF(Z5=Y7,"nitrogen content",IF(AB5=Y7,"potassium content")) -> potassium content
B6: 2 | C6: Choose your source of data | Z6: =IF($Y$3=4,IF(Y10=1,E16/(E8*D38),E16/E8)) -> FALSE | AA6: =IF($Y$3=4,F16/F8) -> FALSE | AB6: =IF($Y$3=4,G16/G8) -> FALSE | AC6: 4 | AD6: =IF(Y7=0,"",IF(Z6=Y7,"nitrogen content",IF(AA6=Y7,"phosphorus content",IF(AB6=Y7,"potassium content","FALSE")))) -> FALSE
E7: N (kg/ML) | F7: P (kg/ML) | G7: K (kg/ML) | L7: Effluent - 2nd pond: | M7: N (kg/ML) | N7: P (kg/ML) | O7: K (kg/ML) | Y7: =MIN(Z3:AB6) -> 0.1011804384
D8: Nutrient concentrations: | E8: =LOOKUP($Y$10,W22:W24,X22:X24) -> 957 | F8: =LOOKUP($Y$10,W22:W24,Y22:Y24) -> 239 | G8: =LOOKUP($Y$10,W22:W24,Z22:Z24) -> 593 | M8: 196 | N8: 47 | O8: 364 | U8: Southwest Victoria
D9: Source: | E9: =LOOKUP(Y10,W22:W24,AA22:AA24) -> Southwest Victoria | M9: 286 | N9: 107 | O9: 474 | U9: Gippsland | W9: OB step 1 TF | Y9: TRUE | Z9: FALSE | AA9: FALSE
C10: =IF(E9="OWN DATA",""," Note: 'typical' data masks significant variation from farm to farm; test your own material!") -> Note: 'typical' data masks significant variation from farm to farm; test your own material! | M10: 175 | N10: 22 | O10: 85 | U10: SE Qld | W10: OB step 1 | Y10: =IF(Y9=TRUE,1,IF(Z9=TRUE,2,IF(AA9=TRUE,3))) -> 1
B11: 3 | C11: Set a nutrient application limit | P11: =IF(Y10=2,IF(Y14=4,"<-- ENTER OWN DATA HERE",""),"") ->  | U11: OWN DATA | W11: OB step 2_1 TF | Y11: TRUE | Z11: FALSE | AA11: FALSE | AD11: Conditional test:
C12: Refer to Fert$mart for further info; no more than 60 kg N/ha per application is recommended. | W12: OB step 2_1 | Y12: =IF(Y11=TRUE,1,IF(Z11=TRUE,2,IF(AA11=TRUE,3))) -> 1 | AD12: =IF($Y$10=1,IF(Y12=3,TRUE,FALSE)) -> FALSE
C13: No more than 60 kg K/ha per application (or 120 kg K/ha per annum) is recommended. | L13: Effluent - single pond: | M13: N (kg/ML) | N13: P (kg/ML) | O13: K (kg/ML) | W13: OB step 2_2 TF | Y13: TRUE | Z13: FALSE | AA13: FALSE | AB13: FALSE
C14: =IF(Y3=4," Enter a maximum application for each nutrient","") ->  | M14: 313 | N14: 65 | O14: 316 | U14: Southwest Victoria | W14: OB step 2_2 | Y14: =IF(Y13=TRUE,1,IF(Z13=TRUE,2,IF(AA13=TRUE,3,IF(AB13=TRUE,4)))) -> 1 | AD14: =IF($Y$10=2,IF(Y14=4,TRUE,FALSE)) -> FALSE
E15: =IF(Y3=4,"kg N/ha","") ->  | F15: =IF(Y3=4,"kg P/ha","") ->  | G15: =IF(Y3=4,"kg K/ha","") ->  | M15: 429 | N15: 113 | O15: 479 | U15: Gippsland | W15: OB step 2_3 TF | Y15: TRUE | Z15: FALSE | AA15: FALSE | AB15: FALSE | AC15: FALSE
D16: =IF(Y3=4,"Your limits","") ->  | M16: 311 | N16: 86 | O16: 361 | U16: Northern Victoria | W16: OB step 2_3 | Y16: =IF(Y15=TRUE,1,IF(Z15=TRUE,2,IF(AA15=TRUE,3,IF(AB15=TRUE,4,IF(AC15=TRUE,5))))) -> 1 | AD16: =IF($Y$10=3,IF(Y16=5,TRUE,FALSE)) -> FALSE
F17: =IF(Y3>=3,"Your application rate will be limited by:","") -> Your application rate will be limited by: | G17: =IF(Y3>=3,LOOKUP(Y3,AC3:AC6,AD3:AD6),"") -> potassium content | M17: 220 | N17: 46 | O17: 394 | U17: SE Qld
B18: 4 | C18: Set a value for nutrients | P18: =IF(Y10=3,IF(Y16=5,"<-- ENTER OWN DATA HERE",""),"") ->  | U18: OWN DATA | AB18: 1 | AC18: Sludge
G19: Dial in the current cost of fertiliser | AB19: 2 | AC19: Effluent - second pond
E20: N ($/kg) | F20: P ($/kg) | G20: K ($/kg) | H20: 600 | I20: Urea ($/t) 46% N | AB20: 3 | AC20: Effluent - single pond (supernatant)
E21: =H20/0.46/1000 -> 1.304347826 | F21: =H21/0.088/1000 -> 3.977272727 | G21: =H22/0.5/1000 -> 1.4 | H21: 350 | I21: Single super ($/t) 8.8% P
H22: 700 | I22: Potash ($/t) 50% K | W22: 1 | X22: =LOOKUP($Y$12,AB22:AB24,AC22:AC24) -> 957 | Y22: =LOOKUP($Y$12,AB22:AB24,AD22:AD24) -> 239 | Z22: =LOOKUP($Y$12,AB22:AB24,AE22:AE24) -> 593 | AA22: =LOOKUP($Y$12,AB22:AB24,U3:U5) -> Southwest Victoria | AB22: 1 | AC22: =M3 -> 957 | AD22: 239 | AE22: 593
B23: 5 | C23: Application summary | W23: 2 | X23: =LOOKUP($Y$14,AB25:AB28,AC25:AC28) -> 196 | Y23: =LOOKUP($Y$14,AB25:AB28,AD25:AD28) -> 47 | Z23: =LOOKUP($Y$14,AB25:AB28,AE25:AE28) -> 364 | AA23: =LOOKUP($Y$14,AB25:AB28,U8:U11) -> Southwest Victoria | AB23: 2 | AC23: 1893 | AD23: 612 | AE23: 934
C24: Target effluent/sludge application rate: | W24: 3 | X24: =LOOKUP($Y$16,AB29:AB33,AC29:AC33) -> 313 | Y24: =LOOKUP($Y$16,AB29:AB33,AD29:AD33) -> 65 | Z24: =LOOKUP($Y$16,AB29:AB33,AE29:AE33) -> 316 | AA24: =LOOKUP($Y$16,AB29:AB33,U14:U18) -> Southwest Victoria | AB24: 3 | AC24: 0 | AD24: 0 | AE24: 0
D25: =Y7 -> 0.1011804384 | E25: ML/ha | F25: =IF(E28>D39,"Warning! N application rate exceeds 60 kg/ha",IF(G28>D40,"Warning! K application rate exceeds 60 kg/ha","")) ->  | AB25: 1 | AC25: =M8 -> 196 | AD25: 47 | AE25: 364
C26: OR | D26: =D25*100 -> 10.11804384 | E26: mm | AB26: 2 | AC26: 286 | AD26: 107 | AE26: 474
D27: Nutrients applied: | E27: N (kg/ha) | F27: P (kg/ha) | G27: K (kg/ha) | AB27: 3 | AC27: 175 | AD27: 22 | AE27: 85
E28: =IF(Y10=1,$D$25*E8*D38,D25*E8) -> 38.73187184 | F28: =$D$25*F8 -> 24.18212479 | G28: =$D$25*G8 -> 60 | AB28: 4 | AC28: 0 | AD28: 0 | AE28: 0
E29: =IF(Y10=1,"Based on 40% N availability in the year of application","") -> Based on 40% N availability in the year of application | AB29: 1 | AC29: =M14 -> 313 | AD29: 65 | AE29: 316
D30: Value of nutrients: | E30: N ($/ML) | F30: P ($/ML) | G30: K ($/ML) | AB30: 2 | AC30: 429 | AD30: 113 | AE30: 479
E31: =E21*E8 -> 1248.26087 | F31: =F21*F8 -> 950.5681818 | G31: =G21*G8 -> 830.2 | H31: Total | I31: =SUM(E31:G31) -> 3029.029051 | J31: $/ML | AB31: 3 | AC31: 311 | AD31: 86 | AE31: 361
E32: =IF(Y10=1,"N value taken over 3+ years","") -> N value taken over 3+ years | AB32: 4 | AC32: 220 | AD32: 46 | AE32: 394
AB33: 5 | AC33: 0 | AD33: 0 | AE33: 0
C38: Mineralistion | D38: 0.4
C39: N limit | D39: 60
C40: K limit | D40: 60
